bitfinex/quotes_SOLUSD_20240626
["timestamp","ask_amount","ask_price","bid_price","bid_amount"]
[1719435623794,8.1365734,137.39,137.35,25.4815]
[1719435624097,0.8580734,137.39,137.36,7.28]
[1719435624389,0.8580734,137.39,137.35,18.2011]
[1719435624390,8.1366734,137.39,137.35,25.4816]
[1719435626196,8.1366734,137.39,137.36,7.2801]
[1719435626197,0.8580734,137.39,137.36,7.2801]
[1719435626393,18.7380734,137.39,137.37,7.2796]
[1719435626569,18.7380734,137.39,137.35,18.2011]
[1719435626771,18.7380734,137.39,137.37,7.2795]
[1719435627193,0.8580734,137.39,137.38,7.279]
[1719435629995,0.8580734,137.39,137.37,18.1989]
[1719435629996,0.8580734,137.39,137.37,25.4782]
[1719435631697,0.8580734,137.39,137.38,43.8443]
[1719435631899,0.8580734,137.39,137.38,44.0143]
[1719435633909,0.8580734,137.39,137.38,7.619]
[1719435636994,0.8580734,137.39,137.38,27.619]
[1719435639284,0.8580734,137.39,137.38,7.619]
[1719435639906,7.34e-05,137.39,137.38,27.619]
[1719435640095,256.0,137.44,137.43,25.4674]
[1719435640295,15.8698,137.49,137.43,0.34]
[1719435640639,15.8698,137.49,137.45,25.4633]
[1719435640786,23.1433,137.49,137.45,25.4633]
[1719435641197,15.8698,137.49,137.42,18.1912]
[1719435641507,7.2749,137.46,137.42,25.4678]
[1719435641691,7.2749,137.46,137.42,25.4681]
[1719435643014,15.8585,137.45,137.39,18.1956]
[1719435643215,7.2766,137.43,137.39,25.4736]
[1719435645304,27.276,137.44,137.4,7.2779]
[1719435645691,27.276,137.44,137.39,18.1956]
[1719435645692,20.0,137.44,137.41,7.2774]
[1719435646000,20.0,137.44,137.39,25.4739]
[1719435646199,7.2765,137.43,137.39,25.4739]
[1719435646408,20.0,137.44,137.36,18.1991]
[1719435646592,20.0,137.44,137.32,6.6143]
[1719435646593,22.6005,137.42,137.32,6.6143]
[1719435646797,20.0,137.41,137.32,6.6143]
[1719435646992,7.2783,137.4,137.35,25.4814]
[1719435647295,7.2783,137.4,137.36,7.2801]
[1719435648105,20.0,137.41,137.31,36.4125]
[1719435648419,7.2797,137.37,137.33,7.2815]
[1719435648615,20.0,137.41,137.34,7.2811]
[1719435648800,7.2792,137.38,137.34,7.2811]
[1719435649212,7.2792,137.38,137.33,18.204]
[1719435649213,7.2785,137.4,137.35,7.2805]
[1719435649416,27.2785,137.39,137.35,7.2805]
[1719435650205,20.0,137.39,137.35,7.2805]
[1719435650607,20.0,137.39,137.36,7.28]
[1719435650812,20.0,137.39,137.35,25.4817]
[1719435652500,27.2785,137.39,137.35,25.4817]
[1719435653816,20.0,137.39,137.36,7.28]
[1719435654021,22.6005,137.42,137.35,18.2013]
[1719435654199,7.2783,137.4,137.36,7.2799]
[1719435654696,7.2786,137.39,137.35,25.4817]
[1719435654910,7.28,137.37,137.33,7.2815]
[1719435655806,27.2792,137.38,137.34,7.2811]
[1719435656006,20.0,137.38,137.35,7.2806]
[1719435657320,27.2791,137.38,137.34,25.4836]
[1719435658500,7.2797,137.37,137.33,7.2817]
[1719435659017,27.2792,137.38,137.34,7.2811]
[1719435659323,20.0,137.38,137.35,7.2806]
[1719435659817,20.0,137.38,137.35,18.2014]
[1719435660018,7.2775,137.41,137.37,25.4781]
[1719435660319,27.2776,137.41,137.37,25.4781]
[1719435660918,20.0,137.41,137.34,18.2018]
[1719435661106,7.2786,137.39,137.35,7.2803]
[1719435662008,20.0,137.41,137.37,7.2794]
[1719435662317,7.2781,137.4,137.36,18.2001]
[1719435662522,20.0,137.39,137.36,25.48]
[1719435663153,27.2785,137.39,137.36,18.2001]
[1719435664111,20.0,137.39,137.36,25.48]
[1719435665539,20.0,137.39,137.37,7.2795]
[1719435665722,20.0,137.4,137.37,7.2795]
[1719435666647,20.0,137.4,137.38,7.2789]
[1719435666812,20.0,137.4,137.37,7.2794]
[1719435669332,20.0,137.4,137.38,7.2789]
[1719435669521,20.0,137.41,137.36,18.2001]
[1719435670110,7.278,137.4,137.36,18.2001]
[1719435670335,20.0,137.39,137.37,7.2795]
[1719435670822,20.0,137.4,137.37,7.2795]
[1719435671022,27.278,137.4,137.37,7.2795]
[1719435671211,20.0,137.4,137.37,7.2795]
[1719435671616,22.6005,137.42,137.39,18.1963]
[1719435671617,15.9847,137.42,137.39,18.1963]
[1719435671826,42.946,137.44,137.4,7.2778]
[1719435672028,20.0,137.43,137.39,18.1963]
[1719435672230,20.0,137.43,137.34,52.916]
[1719435672421,20.0,137.43,137.41,25.4707]
[1719435672727,20.0,137.44,137.41,25.4708]
[1719435672927,20.0,137.44,137.42,7.2765]
[1719435673923,20.0,137.44,137.41,25.471]
[1719435675642,27.2759,137.44,137.41,18.1936]
[1719435676736,7.2764,137.43,137.4,7.2778]
[1719435676920,7.2764,137.43,137.39,7.2783]
[1719435677733,7.2764,137.43,137.34,52.916]
[1719435677734,20.0,137.44,137.37,7.2794]
[1719435677933,7.2775,137.41,137.37,7.2793]
[1719435678126,7.2771,137.42,137.38,7.2789]
[1719435678438,7.2776,137.41,137.37,25.4783]
[1719435678736,7.2767,137.43,137.38,7.2785]
[1719435678918,20.0,137.42,137.38,7.2785]
[1719435679630,27.277,137.42,137.38,7.2785]
[1719435680416,7.2775,137.41,137.37,25.4783]
[1719435682637,20.0,137.42,137.34,16.3413]
[1719435682844,7.2794,137.38,137.34,25.4834]
[1719435683717,7.2787,137.39,137.35,7.2805]
[1719435683930,20.0,137.38,137.35,7.2805]
[1719435684535,20.0,137.38,137.36,7.2801]
[1719435684840,27.2785,137.39,137.36,7.2801]
[1719435685042,27.2785,137.39,137.35,25.4807]
[1719435685536,20.0,137.39,137.35,18.2003]
[1719435685712,24.7299,137.44,137.34,36.7447]
[1719435685713,20.0,137.4,137.34,36.7447]
[1719435685917,27.2765,137.43,137.39,7.278]
[1719435686126,27.2765,137.43,137.39,7.2783]
[1719435686819,7.277,137.42,137.38,25.4761]
[1719435687944,7.2776,137.41,137.38,18.1973]
[1719435688737,7.2781,137.4,137.35,18.2009]
[1719435688932,27.2787,137.39,137.35,18.2009]
[1719435689136,27.2787,137.39,137.35,25.4812]
[1719435693170,7.2792,137.38,137.35,18.2009]
[1719435693531,7.2796,137.37,137.34,7.281]
[1719435694043,7.2792,137.38,137.34,7.281]
[1719435694243,20.0,137.37,137.34,7.281]
[1719435694557,27.2797,137.37,137.33,7.2814]
[1719435695745,20.0,137.37,137.34,7.281]
[1719435696737,27.2796,137.37,137.33,7.2815]
[1719435696933,27.2796,137.37,137.34,7.2811]
[1719435698353,27.2796,137.37,137.33,7.2815]
[1719435699854,20.0,137.37,137.34,7.2811]
[1719435700155,20.0,137.37,137.34,7.2809]
[1719435700347,16.3056,137.4,137.36,7.2797]
[1719435700348,23.584,137.4,137.36,7.2797]
[1719435700674,20.0,137.39,137.36,7.2797]
[1719435702555,50.7189,137.43,137.33,0.17]
[1719435702746,50.7189,137.43,137.39,7.2783]
[1719435702747,7.277,137.42,137.39,7.2783]
[1719435703057,20.0,137.41,137.37,25.4768]
[1719435703435,27.2775,137.41,137.37,25.4768]
[1719435706357,27.2775,137.41,137.38,7.279]
[1719435706853,27.2775,137.41,137.37,25.4771]
[1719435708040,20.0,137.41,137.38,7.2789]
[1719435708956,27.2775,137.41,137.38,7.2789]
[1719435710158,27.2775,137.41,137.37,25.477]
[1719435710758,17.83,137.4,137.37,25.477]
[1719435713045,27.2775,137.41,137.37,25.477]
[1719435713252,25.1084,137.4,137.36,7.2799]
[1719435713443,7.2785,137.39,137.36,7.2799]
[1719435714463,7.2785,137.39,137.35,25.482]
[1719435714965,20.0,137.41,137.35,18.2016]
[1719435715157,7.2777,137.41,137.37,7.2795]
[1719435715549,20.0,137.42,137.38,7.279]
[1719435715550,27.2771,137.42,137.38,7.279]
[1719435715752,17.83,137.4,137.39,7.2785]
[1719435716048,17.83,137.4,137.38,7.2788]
[1719435719365,27.2771,137.42,137.38,7.2788]
[1719435719567,17.83,137.4,137.38,7.2788]
[1719435720646,7.2775,137.41,137.37,25.477]
[1719435720849,7.2781,137.4,137.37,18.1977]
[1719435721465,7.2776,137.41,137.37,25.4771]
[1719435721849,17.83,137.41,137.39,7.2782]
[1719435722163,20.0,137.42,137.39,7.2782]
[1719435722362,17.83,137.41,137.39,7.2782]
[1719435722767,17.83,137.41,137.4,7.278]
[1719435723157,17.83,137.41,137.38,18.1964]
[1719435723574,17.83,137.41,137.39,7.2783]
[1719435723759,27.2769,137.42,137.39,7.2783]
[1719435723945,17.83,137.4,137.37,7.2792]
[1719435724150,7.2782,137.4,137.36,25.6501]
[1719435724344,27.2773,137.42,137.36,0.17]
[1719435724550,20.0,137.42,137.37,18.1977]
[1719435724750,17.83,137.4,137.37,18.1977]
[1719435724969,17.83,137.4,137.39,7.2785]
[1719435725275,17.83,137.4,137.38,7.2788]
[1719435727469,17.83,137.4,137.39,7.2785]
[1719435728049,17.83,137.4,137.38,7.2788]
[1719435728551,27.2769,137.42,137.38,7.2788]
[1719435728746,7.278,137.4,137.37,18.1977]
[1719435728957,7.2775,137.41,137.38,7.279]
[1719435730960,17.83,137.39,137.38,7.279]
[1719435731168,20.0,137.42,137.39,25.4748]
[1719435733587,17.83,137.4,137.39,18.1963]
[1719435736086,17.83,137.4,137.39,25.4748]
[1719435736579,17.83,137.4,137.39,18.1963]
[1719435737876,17.83,137.4,137.39,25.4748]
[1719435740780,20.0,137.42,137.39,25.4748]
[1719435740978,7.2749,137.46,137.42,7.2767]
[1719435741162,24.4826,137.48,137.43,7.2763]
[1719435741163,17.83,137.44,137.43,7.2763]
[1719435742569,17.83,137.44,137.42,7.2767]
[1719435743082,17.83,137.43,137.41,25.471]
[1719435743884,17.83,137.42,137.41,25.471]
[1719435744070,17.83,137.43,137.41,25.471]
[1719435745576,17.83,137.43,137.42,7.2769]
[1719435746470,17.83,137.43,137.41,25.4709]
[1719435747354,17.83,137.43,137.41,18.1937]
[1719435747663,17.83,137.43,137.42,7.2769]
[1719435748279,20.0,137.45,137.42,7.2769]
[1719435748483,17.83,137.43,137.42,7.2769]
[1719435748680,17.83,137.44,137.42,7.2769]
[1719435751090,77.6174,137.48,137.41,18.1937]
[1719435751091,47.13831751,137.51,137.41,17.83]
[1719435751270,8.1295734,137.53,137.48,7.2734]
[1719435751463,17.83,137.51,137.48,25.4577]
[1719435752764,17.83,137.5,137.48,25.4577]
[1719435752969,17.87325856,137.52,137.5,7.2723]
[1719435753382,17.87325856,137.52,137.49,13.521]
[1719435754271,17.87325856,137.52,137.5,7.2726]
[1719435754979,17.87325856,137.52,137.49,13.521]
[1719435755282,17.83,137.5,137.48,25.4579]
[1719435755865,0.04325856,137.52,137.48,25.4579]
[1719435756065,17.83,137.5,137.48,25.4579]
[1719435756279,17.83,137.5,137.48,18.1843]
[1719435756674,7.31505856,137.52,137.48,18.1843]
[1719435757285,7.31505856,137.52,137.48,25.4579]
[1719435757491,17.83,137.5,137.49,7.2732]
[1719435757676,17.83,137.5,137.48,25.4578]
[1719435759280,0.04325856,137.52,137.45,18.1873]
[1719435759478,7.2734,137.49,137.45,25.4622]
[1719435759976,7.2729,137.5,137.46,7.2748]
[1719435761090,7.2724,137.51,137.47,7.2742]
[1719435761299,20.0,137.5,137.47,7.2742]
[1719435762294,27.2727,137.5,137.46,7.2746]
[1719435762673,17.83,137.48,137.46,7.2746]
[1719435765109,20.0,137.5,137.42,18.1918]
[1719435765319,7.2747,137.47,137.43,7.2759]
[1719435765607,17.83,137.44,137.43,7.2759]
[1719435766103,17.83,137.44,137.42,25.4687]
[1719435767282,17.83,137.43,137.42,25.4687]
[1719435767697,17.83,137.43,137.4,7.2779]
[1719435767905,104.9923,137.48,137.41,7.2773]
[1719435767906,7.2754,137.45,137.41,7.2773]
[1719435768079,17.83,137.42,137.41,7.2773]
[1719435768408,17.83,137.42,137.4,7.2778]
[1719435768610,17.83,137.41,137.4,7.2778]
[1719435768791,17.83,137.41,137.39,18.1957]
[1719435769914,17.83,137.41,137.4,7.2777]
[1719435771123,17.83,137.42,137.4,7.2777]
[1719435771306,7.2754,137.45,137.41,7.2773]
[1719435771486,17.83,137.43,137.41,18.1936]
[1719435772198,7.2745,137.47,137.41,18.1936]
[1719435772409,17.83,137.45,137.41,18.1936]
[1719435772614,27.2749,137.46,137.42,7.2768]
[1719435774727,17.83,137.45,137.42,7.2768]
[1719435775026,17.83,137.45,137.43,18.1905]
[1719435775230,17.83,137.44,137.43,25.4665]
[1719435775414,17.83,137.44,137.43,18.1905]
[1719435776409,17.83,137.44,137.43,25.4669]
[1719435778027,17.83,137.44,137.43,18.1905]
[1719435778228,17.83,137.44,137.42,7.2767]
[1719435778425,27.2748,137.46,137.42,7.2767]
[1719435778632,7.276,137.44,137.4,25.4712]
[1719435779735,20.0,137.46,137.4,18.1937]
[1719435779736,7.2764,137.43,137.4,18.1937]
[1719435780336,7.276,137.44,137.4,25.4715]
[1719435780513,20.0,137.43,137.41,7.2774]
[1719435780715,20.0,137.43,137.4,25.4715]
[1719435781109,20.0,137.43,137.41,7.2774]
[1719435781313,7.2756,137.45,137.41,6.7774]
[1719435781520,20.0,137.44,137.41,6.7774]
[1719435781728,27.2759,137.44,137.4,25.4714]
[1719435782113,20.0,137.44,137.41,7.2771]
[1719435782833,7.2764,137.43,137.4,18.1937]
[1719435783143,27.276,137.44,137.4,25.4716]
[1719435784424,20.0,137.44,137.41,7.2774]
[1719435784629,17.83,137.42,137.41,7.2774]
[1719435784837,7.2755,137.45,137.41,7.2774]
[1719435785141,20.0,137.47,137.42,18.1918]
[1719435785317,17.83,137.44,137.43,7.2761]
[1719435785837,27.2746,137.47,137.43,7.2761]
[1719435786044,17.83,137.44,137.43,7.2761]
[1719435786613,27.2746,137.47,137.43,7.2761]
[1719435786814,20.0,137.47,137.44,25.4654]
[1719435787022,16.5884,137.51,137.42,17.83]
[1719435787244,17.83,137.47,137.46,25.4614]
[1719435787614,20.0,137.5,137.48,7.2737]
[1719435787920,17.83,137.5,137.48,7.2737]
[1719435788115,17.83,137.5,137.46,18.1871]
[1719435788116,17.83,137.5,137.47,7.2741]
[1719435788329,7.2722,137.51,137.47,7.2741]
[1719435788536,17.83,137.5,137.48,7.2737]
[1719435788842,17.83,137.5,137.47,7.274]
[1719435789314,0.04325856,137.52,137.46,18.1871]
[1719435790114,17.83,137.5,137.47,7.2738]
[1719435790316,17.83,137.5,137.46,18.1871]
[1719435790522,0.04325856,137.52,137.48,18.1839]
[1719435790850,17.83,137.51,137.48,18.1839]
[1719435791218,17.83,137.51,137.49,7.2731]
[1719435791725,0.04325856,137.52,137.49,7.2731]
[1719435792422,17.87325856,137.52,137.49,7.2731]
[1719435792624,0.04325856,137.52,137.49,7.2731]
[1719435794049,0.04325856,137.52,137.46,34.0361]
[1719435794050,7.2723,137.51,137.47,7.2742]
[1719435794545,7.31495856,137.52,137.48,7.2736]
[1719435794742,17.83,137.51,137.48,7.2736]
[1719435795523,0.04325856,137.52,137.46,16.2061]
[1719435795730,17.83,137.49,137.46,16.2061]
[1719435796242,17.83,137.49,137.46,23.4806]
[1719435796418,17.83,137.49,137.46,41.6677]
[1719435796814,17.83,137.49,137.47,7.2742]
[1719435797550,7.31495856,137.52,137.47,7.2742]
[1719435797737,7.31495856,137.52,137.48,7.2737]
[1719435798249,0.04325856,137.52,137.49,7.2732]
[1719435798424,20.04325856,137.52,137.49,7.2732]
[1719435798743,17.83,137.51,137.48,25.4579]
[1719435798951,27.31515856,137.52,137.48,25.4579]
[1719435799540,17.83,137.5,137.48,25.4579]
[1719435799757,20.04325856,137.52,137.46,23.4806]
[1719435800051,20.0,137.51,137.45,18.1873]
[1719435800241,7.2728,137.5,137.45,18.1873]
[1719435800424,27.2724,137.51,137.46,7.2745]
[1719435800748,17.83,137.48,137.46,7.2745]
[1719435801443,17.83,137.48,137.45,25.4624]
[1719435801647,7.2727,137.5,137.46,7.2747]
[1719435801849,17.83,137.48,137.46,7.2747]
[1719435802231,17.83,137.48,137.45,25.4624]
[1719435802746,27.2722,137.51,137.46,7.2747]
[1719435803042,27.2722,137.51,137.47,7.2742]
[1719435803221,17.83,137.5,137.47,7.2742]
[1719435804934,27.2723,137.51,137.46,25.4604]
[1719435805339,17.83,137.48,137.45,7.2751]
[1719435805650,7.2732,137.49,137.45,7.2751]
[1719435805825,17.83,137.46,137.42,16.2701]
[1719435806031,17.83,137.44,137.42,16.2701]
[1719435806250,17.83,137.44,137.41,13.891]
[1719435806851,17.83,137.43,137.42,7.2768]
[1719435807348,17.83,137.43,137.38,34.6234]
[1719435807554,17.83,137.42,137.4,7.278]
[1719435809033,17.83,137.42,137.4,25.4728]
[1719435810255,17.83,137.42,137.41,7.2774]
[1719435810558,17.83,137.43,137.41,7.2774]
[1719435811137,7.2754,137.45,137.41,7.2774]
[1719435811451,17.83,137.42,137.41,7.2774]
[1719435811949,17.83,137.42,137.4,18.195]
[1719435812154,17.83,137.41,137.4,18.195]
[1719435812336,17.83,137.41,137.4,25.473]
[1719435812656,17.83,137.42,137.4,25.473]
[1719435813545,20.0,137.44,137.37,24.2662]
[1719435813747,17.83,137.41,137.38,7.2787]
[1719435814865,17.83,137.39,137.35,15.7165]
[1719435815071,17.83,137.36,137.35,7.2803]
[1719435815431,17.83,137.36,137.34,32.0341]
[1719435815795,17.83,137.35,137.34,18.2018]
[1719435815941,17.83,137.35,137.34,25.4829]
[1719435816336,17.83,137.36,137.34,25.4829]
[1719435816542,17.83,137.36,137.34,18.2018]
[1719435816857,7.2791,137.38,137.34,25.4829]
[1719435816858,17.83,137.35,137.34,25.4829]
[1719435817967,7.2781,137.4,137.34,18.2018]
[1719435818176,17.83,137.38,137.34,18.2018]
[1719435818559,17.83,137.37,137.35,7.2804]
[1719435819170,17.83,137.36,137.34,25.4828]
[1719435819360,17.83,137.36,137.35,7.2806]
[1719435819559,7.2786,137.39,137.34,25.4828]
[1719435819761,17.83,137.35,137.34,25.4828]
[1719435820157,18.1913,137.43,137.34,18.2018]
[1719435820359,17.83,137.36,137.34,25.4828]
[1719435820566,17.83,137.35,137.34,18.2018]
[1719435821660,17.83,137.35,137.33,7.2815]
[1719435822166,7.2796,137.37,137.33,7.2815]
[1719435822371,18.1938,137.41,137.33,7.2815]
[1719435822372,17.83,137.35,137.33,7.2815]
[1719435824179,17.83,137.35,137.33,7.2815]
[1719435824968,7.2796,137.37,137.32,7.282]
[1719435825780,7.2803,137.36,137.32,7.282]
[1719435826366,7.2794,137.38,137.33,18.2042]
[1719435826570,17.83,137.34,137.33,25.4856]
[1719435827583,17.83,137.34,137.33,18.2042]
[1719435831079,17.83,137.34,137.33,25.4859]
[1719435831488,15.5408,137.39,137.34,7.281]
[1719435831669,20.0,137.38,137.34,7.281]
[1719435831871,17.83,137.36,137.34,7.281]
[1719435832800,20.0,137.38,137.35,7.2805]
[1719435832966,17.83,137.36,137.34,7.281]
[1719435833897,20.0,137.38,137.34,7.281]
[1719435834589,20.0,137.38,137.35,18.2013]
[1719435834790,17.83,137.38,137.35,25.4817]
[1719435835678,20.0,137.4,137.36,7.2801]
[1719435835881,16.3297,137.43,137.37,18.1987]
[1719435836084,16.3297,137.43,137.37,25.478]
[1719435836085,17.83,137.4,137.37,25.478]
[1719435836386,17.83,137.39,137.37,25.478]
[1719435836573,17.83,137.39,137.36,7.28]
[1719435836889,17.83,137.39,137.37,7.2794]
[1719435837187,17.83,137.39,137.36,25.4801]
[1719435838483,7.2781,137.4,137.36,18.2002]
[1719435838691,20.0,137.39,137.36,18.2002]
[1719435838991,17.83,137.37,137.34,7.2808]
[1719435839180,17.83,137.36,137.34,7.2808]
[1719435839375,17.83,137.36,137.35,7.2806]
[1719435839687,17.83,137.37,137.35,7.2806]
[1719435839889,17.83,137.37,137.36,7.2801]
[1719435840091,17.83,137.38,137.37,7.2794]
[1719435840275,20.0,137.39,137.37,7.2794]
[1719435840475,20.0,137.4,137.37,7.2794]
[1719435841093,20.0,137.4,137.36,7.28]
[1719435841781,17.83,137.39,137.36,7.28]
[1719435841984,27.2781,137.4,137.36,7.28]
[1719435846493,7.2757,137.45,137.37,15.3433]
[1719435846797,20.0,137.44,137.41,7.2771]
[1719435846994,27.2751,137.46,137.42,7.2769]
[1719435847296,17.83,137.44,137.42,7.2769]
[1719435847490,17.83,137.44,137.41,7.2772]
[1719435847876,17.83,137.44,137.4,18.1937]
[1719435848076,27.2751,137.46,137.43,25.4672]
[1719435848077,20.0,137.46,137.43,25.4672]
[1719435848399,17.83,137.45,137.43,25.4672]
[1719435848797,37.83,137.46,137.43,25.4672]
[1719435849900,15.3098,137.5,137.43,18.191]
[1719435850084,17.83,137.48,137.44,7.2753]
[1719435850405,25.1038,137.48,137.44,7.2753]
[1719435850701,7.2738,137.48,137.44,7.2753]
[1719435851502,17.83,137.47,137.44,7.2753]
[1719435855078,17.83,137.48,137.47,7.2739]
[1719435856195,0.04325856,137.52,137.48,18.184]
[1719435856405,17.87325856,137.52,137.51,7.2721]
[1719435856699,0.04325856,137.52,137.51,7.2721]
[1719435857700,17.87325856,137.52,137.51,7.2721]
[1719435858591,0.04325856,137.52,137.51,7.2721]
[1719435859385,0.04325856,137.52,137.51,7.6121]
[1719435864322,0.04325856,137.52,137.51,7.2721]
[1719435864609,0.04325856,137.52,137.5,25.4543]
[1719435866012,0.04325856,137.52,137.48,13.7396]
[1719435866315,0.04325856,137.52,137.5,7.2727]
[1719435867209,0.04325856,137.52,137.49,18.1829]
[1719435867210,0.04325856,137.52,137.51,7.2721]
[1719435867514,0.04325856,137.52,137.5,7.2724]
[1719435869016,17.87325856,137.52,137.5,7.2724]
[1719435870213,17.87325856,137.52,137.51,26.46788609]
[1719435870214,0.04325856,137.52,137.51,26.46788609]
[1719435870398,0.04325856,137.52,137.51,25.4525]
[1719435870719,0.04325856,137.52,137.5,7.2725]
[1719435870919,0.04325856,137.52,137.49,7.273]
[1719435871815,17.87325856,137.52,137.49,7.273]
[1719435873398,17.87325856,137.52,137.5,7.2726]
[1719435874404,0.04325856,137.52,137.5,7.2726]
[1719435874601,0.04325856,137.52,137.51,7.2721]
[1719435879097,0.04325856,137.52,137.5,25.4538]
[1719435881626,0.04325856,137.52,137.49,0.34]
[1719435881825,0.04325856,137.52,137.49,7.6132]
[1719435884228,7.31485856,137.52,137.49,0.34]
[1719435884412,0.04325856,137.52,137.49,0.17]
[1719435884605,0.04325856,137.52,137.49,7.4431]
[1719435886523,0.04325856,137.52,137.5,7.2726]
[1719435887611,7.2722,137.51,137.46,18.187]
[1719435888017,7.2722,137.51,137.46,25.4613]
[1719435888223,7.2722,137.51,137.47,7.2742]
[1719435888610,7.2727,137.5,137.46,25.4617]
[1719435888829,7.2723,137.51,137.47,7.274]
[1719435889007,20.0,137.5,137.47,7.274]
[1719435889208,27.2729,137.5,137.46,25.4618]
[1719435890120,20.0,137.5,137.46,25.4618]
[1719435890319,20.0,137.5,137.47,7.2741]
[1719435890702,20.0,137.5,137.46,18.187]
[1719435890904,20.0,137.5,137.46,25.4616]
[1719435892519,27.2728,137.5,137.46,25.4616]
[1719435896426,20.0,137.5,137.46,25.4616]
[1719435897121,20.0,137.5,137.47,7.2741]
[1719435897324,20.0,137.5,137.48,7.2737]
[1719435897528,20.0,137.51,137.48,7.2737]
[1719435898827,27.2722,137.51,137.47,7.2741]
[1719435900139,20.0,137.51,137.47,7.2741]
[1719435900631,27.2723,137.51,137.47,7.2741]
[1719435901243,7.2728,137.5,137.46,25.6317]
[1719435901418,20.0,137.49,137.46,25.4617]
[1719435901619,20.0,137.49,137.43,18.1905]
[1719435901830,7.2735,137.49,137.44,7.6156]
[1719435902038,7.2735,137.49,137.45,7.2753]
[1719435902336,7.2728,137.5,137.46,7.2747]
[1719435902541,20.0,137.49,137.46,7.2747]
[1719435902920,0.04325856,137.52,137.47,18.1855]
[1719435903123,0.04325856,137.52,137.48,0.17]
[1719435903329,0.04325856,137.52,137.48,18.1832]
[1719435903519,27.31495856,137.52,137.48,25.4564]
[1719435903724,20.04325856,137.52,137.5,7.2726]
[1719435903941,20.04325856,137.52,137.49,7.273]
[1719435904131,20.04325856,137.52,137.5,7.2725]
[1719435905425,20.04325856,137.52,137.49,7.273]
[1719435908449,20.04325856,137.52,137.48,18.1832]
[1719435908450,0.04325856,137.52,137.51,7.2721]
[1719435908631,0.04325856,137.52,137.51,7.6121]
[1719435910824,0.04325856,137.52,137.51,8.50831443]
[1719435914059,0.04325856,137.52,137.51,7.6121]
[1719435917251,0.8580734,137.53,137.52,61.809]
[1719435917442,7.34e-05,137.53,137.52,82.149]
[1719435920554,7.34e-05,137.53,137.52,62.149]
[1719435933884,7.34e-05,137.53,137.52,61.809]
[1719435934171,7.34e-05,137.53,137.52,25.4507]
[1719435938559,7.34e-05,137.53,137.52,25.7907]
[1719435942587,7.34e-05,137.53,137.52,26.86690167]
[1719435942787,7.34e-05,137.53,137.52,25.7907]
[1719435945561,7.34e-05,137.53,137.51,7.2721]
[1719435946185,7.34e-05,137.53,137.52,7.2716]
[1719435947364,7.34e-05,137.53,137.51,7.272]
[1719435948475,7.34e-05,137.53,137.52,7.2716]
[1719435951589,17.7900734,137.53,137.52,7.2716]
[1719435951977,7.34e-05,137.53,137.52,7.2716]
[1719435954304,7.34e-05,137.53,137.51,7.2719]
[1719435956983,7.34e-05,137.53,137.52,25.4507]
[1719435957175,17.7900734,137.53,137.52,18.1791]
[1719435957403,17.7900734,137.53,137.52,25.4507]